bitfinex-derivatives/quotes_ETHF0:USTF0_20250917
["timestamp","ask_amount","ask_price","bid_price","bid_amount"]
[1758149110222,0.4627,4577.4,4577.3,0.8602]
[1758149110611,0.2367,4577.4,4577.3,0.8602]
[1758149111118,0.4627,4577.4,4577.3,0.8602]
[1758149111320,1.0547,4577.4,4577.3,0.0218]
[1758149114123,1.0547,4577.4,4577.3,0.2731]
[1758149114514,0.8287,4577.4,4577.3,0.2731]
[1758149114718,1.0547,4577.4,4577.3,0.2731]
[1758149115725,1.55404868,4577.4,4577.3,0.0218]
[1758149116122,5.55404868,4577.4,4576.5,0.1748]
[1758149116424,0.8287,4576.6,4576.5,0.4261]
[1758149116613,1.0547,4576.6,4576.5,0.4261]
[1758149116819,0.2367,4576.1,4576.0,3.6001]
[1758149117021,1.0547,4576.1,4576.0,4.0462]
[1758149117328,1.0547,4576.1,4576.0,3.2078]
[1758149118026,1.0547,4576.1,4576.0,4.0462]
[1758149119431,1.0547,4576.1,4576.0,0.2513]
[1758149119631,0.8287,4575.7,4575.6,0.8384]
[1758149119830,1.0547,4575.7,4575.6,0.8384]
[1758149120328,3.572,4576.9,4576.3,0.3484]
[1758149120518,0.73568097,4576.8,4576.7,0.8384]
[1758149120722,0.96168097,4576.8,4576.7,4.0462]
[1758149120922,1.75188742,4577.0,4576.7,4.0462]
[1758149121128,0.226,4576.9,4576.8,0.8384]
[1758149121626,0.2367,4576.4,4576.3,0.8384]
[1758149121827,0.4627,4576.4,4576.3,0.8384]
[1758149122024,0.3642,4576.8,4576.5,0.141]
[1758149122229,0.226,4576.7,4576.6,0.8384]
[1758149122424,35.7632,4577.1,4576.7,0.3484]
[1758149122629,35.9999,4577.1,4577.0,0.49]
[1758149122820,36.4537,4577.1,4577.0,0.8384]
[1758149123228,35.6357,4577.1,4577.0,0.9794]
[1758149123431,35.8617,4577.1,4577.0,0.9794]
[1758149124229,36.2259,4577.1,4577.0,0.9794]
[1758149125837,35.9999,4577.1,4577.0,0.9794]
[1758149126036,36.2249,4577.1,4577.0,0.9794]
[1758149126234,36.4527,4577.1,4577.0,0.8384]
[1758149126430,0.4645,4576.7,4576.6,0.49]
[1758149126738,1.0537,4576.7,4576.6,0.8384]
[1758149127231,0.1405,4577.0,4576.3,0.49]
[1758149127232,0.3642,4576.9,4576.3,0.49]
[1758149127536,0.3642,4576.7,4576.4,0.2513]
[1758149127734,0.225,4576.8,4576.5,0.9794]
[1758149127929,0.8287,4576.6,4576.5,0.49]
[1758149128240,0.8287,4576.6,4576.5,0.631]
[1758149128431,0.8287,4576.6,4576.5,0.8384]
[1758149129637,0.8287,4576.6,4576.5,0.9794]
[1758149129937,0.225,4576.6,4576.5,0.631]
[1758149130237,0.225,4576.6,4576.5,0.9794]
[1758149132331,35.399,4577.1,4576.5,0.631]
[1758149132636,0.4617,4577.0,4576.9,0.8384]
[1758149133139,0.2367,4577.0,4576.9,0.8384]
[1758149133440,1.0537,4577.0,4576.9,0.8384]
[1758149134445,35.6357,4577.1,4577.0,0.9794]
[1758149134740,36.3600387,4577.1,4577.0,0.9794]
[1758149134940,36.7242387,4577.1,4577.0,0.9794]
[1758149135335,36.92754982,4577.1,4577.0,0.9794]
[1758149135532,37.15534982,4577.1,4577.0,0.9794]
[1758149136541,1.75634982,4577.1,4577.0,0.9794]
[1758149137240,1.75634982,4577.1,4577.0,0.8384]
[1758149141139,0.8477,4576.9,4576.8,0.5893]
[1758149141334,1.3470387,4576.9,4576.8,0.2253]
[1758149141841,0.8477,4576.3,4576.2,3.2296]
[1758149142036,1.0727,4576.3,4576.2,3.2296]
[1758149142237,1.0727,4576.3,4576.2,3.4331]
[1758149142437,1.0727,4576.3,4576.2,3.2078]
[1758149142634,1.0727,4576.3,4575.9,0.364]
[1758149142841,0.8477,4575.8,4575.7,3.2078]
[1758149143140,1.0727,4575.8,4575.7,3.2078]
[1758149143336,0.1391,4575.5,4575.3,0.03972503]
[1758149143540,1.0727,4575.4,4575.3,0.26502503]
[1758149144733,1.0727,4575.4,4575.3,0.62902503]
[1758149146438,0.1391,4575.0,4574.7,0.1966]
[1758149146646,0.8477,4574.8,4574.7,0.1966]
[1758149146831,1.34788765,4574.8,4574.7,0.1966]
[1758149147036,0.8477,4574.3,4574.2,3.2078]
[1758149147236,0.4793,4573.3,4573.2,0.24716677]
[1758149147538,0.7043,4573.3,4573.2,0.49206677]
[1758149147949,0.7043,4573.3,4573.2,0.85606677]
[1758149148151,1.0727,4573.3,4573.2,0.85606677]
[1758149148946,1.0727,4573.3,4573.2,0.24716677]
[1758149149145,1.0727,4573.3,4573.2,0.85606677]
[1758149149455,1.0727,4573.3,4573.2,0.61116677]
[1758149149738,1.0727,4573.3,4573.2,0.02186677]
[1758149149941,1.0727,4573.3,4573.2,0.61116677]
[1758149150140,1.0727,4573.3,4573.2,0.85606677]
[1758149150534,0.8477,4573.3,4573.2,0.85606677]
[1758149150740,1.0727,4573.3,4573.2,0.85606677]
[1758149151040,0.225,4573.3,4573.2,0.85606677]
[1758149151244,3.2078,4574.4,4573.4,0.4702]
[1758149151245,0.225,4573.5,4573.4,0.4702]
[1758149151446,0.4719,4573.6,4573.5,0.9788]
[1758149152642,1.0727,4573.6,4573.5,0.8342]
[1758149153043,1.0727,4573.6,4573.5,0.9788]
[1758149153940,0.7043,4573.6,4573.5,0.9788]
[1758149155052,0.8477,4574.4,4574.3,0.8342]
[1758149155254,1.0727,4574.4,4574.3,0.5893]
[1758149155746,1.0727,4574.4,4574.3,0.8342]
[1758149156347,35.7754,4574.8,4574.3,0.8342]
[1758149156547,35.7754,4574.8,4574.5,0.1446]
[1758149156548,0.225,4574.7,4574.5,0.1446]
[1758149156743,1.0727,4574.7,4574.6,0.5893]
[1758149157855,1.0727,4574.7,4574.6,0.8342]
[1758149158653,3.2078,4575.9,4574.7,0.3549]
[1758149158847,3.2078,4575.9,4575.3,0.8198]
[1758149158848,0.8254,4575.4,4575.3,0.8198]
[1758149160148,3.5638,4575.9,4575.4,0.3549]
[1758149160354,3.5638,4575.9,4575.2,3.2078]
[1758149160355,0.4579,4575.8,4575.7,0.8198]
[1758149160646,0.356,4575.7,4575.2,3.5627]
[1758149160848,0.2329,4575.7,4575.6,0.8198]
[1758149161042,0.4579,4575.7,4575.6,0.8198]
[1758149161246,1.0504,4575.7,4575.6,0.8198]
[1758149163147,0.2329,4575.7,4575.6,0.8198]
[1758149163349,35.421,4576.4,4576.0,0.9666]
[1758149163555,0.6944,4576.3,4576.2,4.0276]
[1758149163749,1.0504,4576.3,4576.2,3.6727]
[1758149164747,1.0504,4576.3,4576.2,4.0276]
[1758149165458,1.0504,4576.3,4576.2,0.8198]
[1758149167246,1.0504,4576.3,4576.2,0.84982827]
[1758149168057,1.0504,4576.3,4576.2,0.27352827]
[1758149168257,0.8254,4576.3,4576.2,0.87222827]
[1758149168458,1.0504,4576.3,4576.2,0.87222827]
[1758149168857,1.0504,4576.3,4576.2,0.27352827]
[1758149169755,1.0504,4576.3,4576.2,0.87222827]
[1758149171264,1.0504,4576.3,4576.2,0.27352827]
[1758149171956,1.0504,4576.3,4576.2,0.03002827]
[1758149173760,0.8254,4576.3,4576.2,0.25982827]
[1758149173965,1.0504,4576.3,4576.2,0.25982827]
[1758149174562,1.0504,4576.3,4576.2,0.03002827]
[1758149176063,1.22575087,4576.3,4576.2,0.03002827]
[1758149176764,1.0504,4576.3,4576.2,0.03002827]
[1758149178564,0.4711,4575.6,4575.5,0.0858]
[1758149178755,1.0417,4575.6,4575.5,0.0858]
[1758149178960,1.0417,4575.6,4575.5,0.3156]
[1758149179162,1.0417,4575.6,4575.5,0.6823]
[1758149180362,1.0417,4575.6,4575.5,0.9143]
[1758149180665,3.2078,4575.9,4575.5,1.0593]
[1758149180863,0.225,4575.8,4575.7,0.4618]
[1758149181067,0.4599,4575.8,4575.7,0.8285]
[1758149181469,1.0417,4575.8,4575.7,0.8285]
[1758149181670,1.0417,4575.8,4575.7,0.2298]
[1758149181961,1.0417,4575.8,4575.7,0.5965]
[1758149182164,1.0417,4575.8,4575.5,0.0858]
[1758149182763,0.8167,4575.6,4575.5,0.0858]
[1758149182964,1.75099068,4575.6,4575.5,0.0858]
[1758149183664,1.52610725,4575.6,4575.5,0.6823]
[1758149183866,0.8167,4575.6,4575.5,0.9384]
[1758149184172,1.0417,4575.6,4575.5,0.3397]
[1758149184770,1.0417,4575.6,4575.5,0.1099]
[1758149185265,1.75209688,4575.6,4575.5,0.1099]
[1758149185765,1.52709688,4575.6,4575.5,0.3397]
[1758149185978,1.0417,4575.6,4575.5,0.9384]
[1758149186274,1.75237714,4575.6,4575.5,0.3397]
[1758149186566,1.75237714,4575.6,4575.5,0.7064]
[1758149187076,1.75237714,4575.6,4575.5,0.9384]
[1758149187559,1.75237714,4575.6,4575.5,0.3397]
[1758149187760,1.40677714,4575.6,4575.5,1.0834]
[1758149187967,0.67044793,4575.6,4575.5,1.0834]
[1758149188169,1.1708019,4575.6,4575.5,1.0834]
[1758149188472,1.7526019,4575.6,4575.5,0.3397]
[1758149188770,1.7526019,4575.6,4575.5,0.7064]
[1758149189368,1.7526019,4575.6,4575.5,0.9384]
[1758149189568,1.75270539,4575.6,4575.5,0.9384]
[1758149190566,1.40710539,4575.6,4575.5,1.0834]
[1758149190973,1.75270539,4575.6,4575.5,1.0834]
[1758149191671,0.94590539,4575.6,4575.5,1.0834]
[1758149191877,0.93600539,4575.6,4575.5,1.0834]
[1758149192072,1.17090539,4575.6,4575.5,1.0834]
[1758149192278,1.51650539,4575.6,4575.5,1.0834]
[1758149194375,0.94590539,4575.6,4575.5,1.0834]
[1758149194580,0.93600539,4575.6,4575.5,1.0834]
[1758149195278,0.43565142,4575.6,4575.5,1.0834]
[1758149195479,3.5534,4576.0,4575.5,1.0834]
[1758149195680,1.15491087,4575.9,4575.8,0.7994]
[1758149195878,1.50781087,4575.9,4575.8,0.7994]
[1758149196082,1.75078044,4575.9,4575.8,0.8235]
[1758149197782,1.75078044,4575.9,4575.8,0.0241]
[1758149198478,35.421,4576.4,4575.8,0.4811]
[1758149198680,35.421,4576.4,4576.3,4.0072]
[1758149198980,36.218,4576.4,4576.3,4.0313]
[1758149199281,36.461,4576.4,4576.3,4.0313]
[1758149199478,36.461,4576.4,4576.3,0.2512]
[1758149199479,37.17229735,4576.4,4576.3,0.2512]
[1758149199671,36.236,4576.4,4576.3,0.8235]
[1758149199872,36.461,4576.4,4576.3,0.8235]
[1758149201183,1.04,4576.4,4576.3,0.8235]
[1758149202487,1.04,4576.4,4576.3,0.2512]
[1758149202688,1.04,4576.4,4576.3,0.0241]
[1758149203187,1.04,4576.4,4576.3,0.5936]
[1758149203391,1.04,4576.4,4576.3,0.8235]
[1758149204885,0.815,4576.4,4576.3,0.2512]
[1758149205088,1.04,4576.4,4576.3,0.2512]
[1758149205393,1.04,4576.4,4576.3,0.0241]
[1758149205800,1.04,4576.4,4576.3,0.8235]
[1758149206594,1.04,4576.4,4576.3,0.2512]
[1758149207202,1.04,4576.4,4576.3,0.0241]
[1758149207797,1.04,4576.4,4576.3,0.8235]
[1758149208499,1.04,4576.4,4576.3,0.5936]
[1758149208898,1.04,4576.4,4576.3,0.2512]
[1758149209100,0.815,4576.4,4576.3,0.8235]
[1758149209401,1.04,4576.4,4576.3,0.2512]
[1758149210505,1.04,4576.4,4576.3,0.0241]
[1758149210998,0.4441,4576.9,4576.8,0.5695]
[1758149211208,1.04,4576.9,4576.8,0.5695]
[1758149212003,1.04,4576.9,4576.8,0.5936]
[1758149213999,1.04,4576.9,4576.8,0.8235]
[1758149217300,35.7669,4577.4,4576.9,0.3424]
[1758149217605,0.4621,4577.2,4577.1,0.5695]
[1758149217807,0.815,4577.2,4577.1,0.5695]
[1758149218006,0.815,4577.2,4577.1,0.5936]
[1758149218506,1.04,4577.2,4577.1,0.5936]
[1758149220499,0.815,4577.2,4577.1,0.5936]
[1758149220695,0.2191,4577.2,4577.1,0.8256]
[1758149220901,0.4441,4577.2,4577.1,0.8256]
[1758149221113,0.225,4577.2,4577.1,0.8256]
[1758149222193,0.5633,4578.0,4577.9,0.4632]
[1758149222404,0.4482,4578.0,4577.9,0.7912]
[1758149222605,0.4551,4578.0,4577.9,0.7912]
[1758149222804,0.4482,4578.0,4577.9,0.7912]
[1758149223000,3.431,4578.3,4578.2,0.4632]
[1758149223205,3.4328,4578.3,4578.2,0.7912]
[1758149223407,0.4482,4578.3,4578.2,0.7912]
[1758149224201,0.4482,4578.3,4578.2,0.8153]
[1758149224403,0.5633,4578.3,4578.2,0.8153]
[1758149224606,0.4482,4578.3,4578.2,0.8153]
[1758149225504,0.2232,4578.3,4578.2,0.8153]
[1758149225702,0.4482,4578.3,4578.2,0.8153]
[1758149226303,0.2232,4578.3,4578.2,0.8153]
[1758149226504,1.0264,4578.3,4578.2,0.8153]
[1758149227608,0.2232,4578.3,4578.2,0.8153]
[1758149227909,0.2154,4578.7,4578.6,0.779]
[1758149228211,0.4404,4578.7,4578.6,4.0109]
[1758149228705,3.2078,4581.0,4579.3,0.432]
[1758149228902,1.50079993,4580.9,4580.8,0.432]
[1758149229104,0.5788,4580.5,4580.4,0.432]
[1758149229404,1.126,4580.5,4580.4,0.217]
[1758149229701,0.7938,4580.1,4580.0,3.4248]
[1758149229908,1.0188,4580.1,4580.0,3.2078]
[1758149230107,1.0188,4580.1,4579.4,3.4248]
[1758149230108,0.9251,4579.5,4579.4,3.4248]
[1758149231001,0.9251,4579.5,4579.4,3.6398]
[1758149231206,0.9251,4579.5,4579.4,3.9868]
[1758149231402,0.225,4579.8,4579.5,0.347]
[1758149231706,0.2154,4580.4,4580.3,0.432]
[1758149231912,0.7867,4580.4,4580.3,0.432]
[1758149232306,1.0188,4580.4,4580.3,0.432]
[1758149233407,1.0188,4580.4,4580.3,0.217]
[1758149233615,1.0188,4580.4,4579.7,0.347]
[1758149234702,0.2154,4580.2,4580.1,0.779]
[1758149238116,0.2342,4580.4,4580.3,0.432]
[1758149238312,0.2342,4580.4,4580.3,0.779]
[1758149239205,0.2154,4580.4,4580.3,0.779]
[1758149239412,0.4404,4580.4,4580.3,0.779]
[1758149239811,0.225,4580.4,4580.3,0.779]
[1758149240014,0.2746,4581.0,4580.3,0.779]
[1758149240212,0.225,4580.9,4580.5,0.1299]
[1758149240414,0.4475,4580.6,4580.5,0.6939]
[1758149241119,0.4475,4580.6,4580.5,0.9089]
[1758149241417,0.6725,4580.6,4580.5,0.9089]
[1758149242916,0.4475,4580.2,4580.1,3.6398]
[1758149243115,0.4475,4580.2,4580.1,0.779]
[1758149243316,0.4475,4580.2,4580.0,0.1299]
[1758149243317,0.4404,4580.6,4580.5,0.9089]
[1758149243517,3.2078,4580.7,4580.5,0.9089]
[1758149243718,3.2078,4580.7,4580.6,0.779]
[1758149243919,3.4328,4580.7,4580.6,0.779]
[1758149244316,3.8803,4580.7,4580.6,0.779]
[1758149244621,0.9471,4580.7,4580.6,0.347]
[1758149245123,0.9471,4580.7,4580.6,0.564]
[1758149247817,4.1549,4580.7,4580.6,0.347]
[1758149248318,4.37755902,4580.7,4580.6,0.779]
[1758149248518,0.6725,4580.7,4580.6,0.779]
[1758149249517,3.2078,4581.3,4580.6,0.779]
[1758149249818,0.2154,4581.6,4581.5,0.5619]
[1758149250020,0.4404,4581.6,4581.5,0.5619]
[1758149250320,0.93768025,4581.6,4581.5,0.9089]
[1758149251112,0.49728025,4581.6,4581.5,0.9089]
[1758149251316,0.72228025,4581.6,4581.5,0.9089]
[1758149251618,0.93768025,4581.6,4581.5,0.9089]
[1758149251816,1.44438025,4581.6,4581.5,0.347]
[1758149252019,0.7221,4581.2,4581.1,0.564]
[1758149252324,0.6725,4581.2,4581.1,0.779]
[1758149252912,0.4404,4581.2,4581.1,0.779]
[1758149253116,1.44472313,4581.2,4581.1,0.347]
[1758149253319,0.7221,4581.0,4580.9,0.5216]
[1758149253519,1.21972313,4581.0,4580.9,0.5216]
[1758149253722,1.21972313,4581.0,4580.9,0.7386]
[1758149254113,0.94512313,4581.0,4580.9,0.7386]
[1758149254320,0.94512313,4581.0,4580.9,0.9536]
[1758149254518,0.72162313,4581.0,4580.9,0.9536]
[1758149254715,0.49762313,4581.0,4580.9,0.9536]
[1758149254920,0.224,4581.0,4580.9,0.9536]
[1758149255220,0.2746,4581.8,4581.0,0.1299]
[1758149255428,0.7221,4581.8,4581.7,0.564]
[1758149255624,0.72224108,4581.8,4581.7,0.792]
[1758149255924,0.95164108,4581.8,4581.7,0.792]
[1758149256114,1.46054108,4581.8,4581.7,0.792]
[1758149256320,1.18354108,4581.8,4581.5,0.4574]
[1758149256520,0.7383,4581.6,4581.5,0.4574]
[1758149256737,1.23654108,4581.6,4581.5,0.6899]
[1758149257031,0.95954108,4581.6,4581.5,0.6899]
[1758149257217,0.95954108,4581.6,4581.5,0.923]
[1758149258923,1.23654108,4581.6,4581.0,0.1299]
[1758149259217,0.4613,4581.2,4581.1,0.56]
[1758149259418,0.95164108,4581.2,4581.1,0.788]
[1758149259813,0.72224108,4581.2,4581.1,0.788]
[1758149260019,0.49824108,4581.2,4581.1,0.788]
[1758149260226,0.72857099,4581.8,4581.7,0.4605]
[1758149260530,0.91198241,4581.8,4581.7,0.788]
[1758149260827,1.14138241,4581.8,4581.7,0.788]
[1758149261429,0.91738241,4581.8,4581.7,0.788]
[1758149261629,1.14138241,4581.8,4581.7,0.788]
[1758149262122,1.37328241,4581.8,4581.7,0.788]
[1758149262326,1.65028241,4581.8,4581.7,0.56]
[1758149263030,1.37328241,4581.8,4581.7,0.788]
[1758149263222,1.37328241,4581.8,4581.7,0.56]
[1758149263427,1.65028241,4581.8,4581.5,0.135]
[1758149263622,0.7383,4581.6,4581.0,3.3377]
[1758149263822,0.4613,4581.2,4581.1,0.3275]
[1758149264130,0.7383,4581.0,4580.9,0.5021]
[1758149264429,1.23747099,4581.0,4580.9,0.7346]
[1758149264629,0.96047099,4581.0,4580.9,0.7346]
[1758149264822,0.96047099,4581.0,4580.9,0.9626]
[1758149265221,0.9604587,4581.0,4580.9,0.9626]
[1758149267034,0.4991587,4581.0,4580.9,0.9626]
[1758149267728,0.7285587,4581.0,4580.9,0.9626]
[1758149269232,0.7285587,4581.0,4580.9,0.5021]
[1758149269233,1.2374587,4581.0,4580.9,0.5021]
[1758149269432,0.9604587,4581.0,4580.9,0.7346]
[1758149270833,0.9604587,4581.0,4580.9,0.9626]
[1758149271034,1.2374587,4581.0,4580.9,0.7346]
[1758149271237,0.9604587,4581.0,4580.9,0.7346]
[1758149271537,0.9604587,4581.0,4580.9,0.9626]
[1758149272339,1.2374587,4581.0,4580.9,0.5021]
[1758149272935,1.2374587,4581.0,4580.9,0.7346]
[1758149273135,0.9604587,4581.0,4580.9,0.7346]
[1758149273638,1.1844587,4581.0,4580.9,0.9626]
[1758149273941,0.9604587,4581.0,4580.9,0.9626]
[1758149274132,1.1844587,4581.0,4580.9,0.9626]
[1758149274436,0.9604587,4581.0,4580.9,0.9626]
[1758149274635,1.4614587,4581.0,4580.9,0.5021]
[1758149275430,1.5529587,4581.0,4580.9,0.1746]
[1758149275839,1.74388842,4581.0,4580.9,0.1746]
[1758149276039,0.69008842,4581.0,4580.9,0.9626]
[1758149276226,0.4991587,4581.0,4580.9,0.9626]
[1758149276434,0.7231587,4581.0,4580.9,0.9626]
[1758149276739,0.7231587,4581.0,4580.9,0.788]
[1758149276740,0.224,4581.0,4580.9,0.788]
[1758149277232,39.0681,4581.9,4581.8,0.788]
[1758149277426,36.77503112,4581.9,4581.8,0.788]
[1758149277832,36.55103112,4581.9,4581.8,0.788]
[1758149278038,36.31373112,4581.9,4581.8,0.788]
[1758149278437,36.54313112,4581.9,4581.8,0.788]
[1758149278638,36.77503112,4581.9,4581.8,0.788]
[1758149279040,37.04303112,4581.9,4581.8,0.3275]
[1758149279439,37.04303112,4581.9,4581.8,0.5537]
[1758149279639,36.77503112,4581.9,4581.8,0.5537]
[1758149279840,36.77503112,4581.9,4581.8,0.7684]
[1758149281740,36.55103112,4581.9,4581.8,0.7684]
[1758149281937,37.04303112,4581.9,4581.8,0.7684]
[1758149282337,37.04299213,4581.9,4581.8,0.7684]
[1758149282538,36.77499213,4581.9,4581.8,0.7684]
[1758149283843,36.55099213,4581.9,4581.8,0.7684]
[1758149284043,36.77499213,4581.9,4581.8,0.7684]
[1758149287240,37.04019213,4581.9,4581.8,0.3275]
[1758149287742,37.04019213,4581.9,4581.8,0.5608]
[1758149288351,37.04019213,4581.9,4581.8,0.3275]
[1758149289351,37.04019213,4581.9,4581.8,0.5608]
[1758149289643,37.04019213,4581.9,4581.8,0.3275]
[1758149289844,0.4492,4581.7,4581.6,0.5101]
[1758149290146,1.21417709,4581.7,4581.6,0.5101]
[1758149290340,1.43817709,4581.7,4581.6,0.5101]
[1758149290648,0.3806,4580.7,4580.6,0.3355]
[1758149290846,0.514,4580.7,4580.6,0.5688]
[1758149291040,3.3528,4581.3,4581.2,0.7888]
[1758149291239,4.27708743,4581.3,4581.2,0.7888]
[1758149291739,0.92428743,4581.3,4581.2,0.7888]
[1758149291944,1.01661706,4581.3,4581.2,0.7888]
[1758149292248,0.87161706,4581.3,4581.2,0.7888]
[1758149292542,0.72661706,4581.3,4581.2,0.7888]
[1758149292846,0.224,4581.3,4581.2,0.7888]
[1758149293844,3.3528,4581.8,4581.7,0.7888]
[1758149294046,4.05298089,4581.8,4581.7,0.7888]
[1758149294236,4.27698089,4581.8,4581.7,0.7888]
[1758149294437,4.05298089,4581.8,4581.7,0.7888]
[1758149294743,0.92418089,4581.8,4581.7,0.7888]
[1758149294942,0.72654259,4581.8,4581.7,0.7888]
[1758149295240,3.4978,4582.3,4582.2,0.4533]
[1758149295441,3.91939524,4582.3,4582.0,0.465]
[1758149295641,0.3806,4582.1,4582.0,0.465]
[1758149295945,0.0906,4582.0,4581.5,0.1295]
[1758149296144,0.19761067,4581.9,4581.6,0.7888]
[1758149296338,3.4978,4582.3,4582.2,0.7888]
[1758149296646,3.91940739,4582.3,4582.2,0.7888]
[1758149297645,0.71160739,4582.3,4582.2,0.7888]
[1758149297844,0.514,4582.3,4582.2,0.7888]
[1758149298346,0.29,4582.3,4582.2,0.7888]
[1758149299048,0.514,4582.3,4582.2,0.7888]
[1758149299235,0.29,4582.3,4582.2,0.7888]
[1758149299539,0.514,4582.3,4582.2,0.7888]
[1758149300042,3.7218,4582.3,4582.2,0.7888]
[1758149300234,3.5503496,4582.3,4582.2,0.7888]
[1758149300435,1.96151946,4585.1,4582.2,0.7888]
[1758149300436,3.2078,4582.8,4582.2,0.7888]
[1758149300646,0.71152971,4582.7,4582.6,0.3355]
[1758149300843,0.80212971,4582.7,4582.1,3.2078]
[1758149301049,3.2078,4582.3,4582.1,0.7888]
[1758149301350,3.4978,4582.8,4582.7,0.7888]
[1758149301650,3.69534768,4582.8,4582.7,0.7888]
[1758149301844,3.91934768,4582.8,4582.7,0.3355]
[1758149302045,3.91934768,4582.8,4582.7,0.7888]
[1758149302244,3.69534415,4582.8,4582.7,0.7888]
[1758149302549,3.91934415,4582.8,4582.7,0.7888]
[1758149303151,3.69534415,4582.8,4582.7,0.7888]
[1758149303345,3.91934415,4582.8,4582.7,0.7888]
[1758149303537,3.62934415,4582.8,4582.7,0.7888]
[1758149304137,0.022,4583.2,4583.0,0.1295]
[1758149304337,0.022,4583.2,4583.1,0.7888]
[1758149304649,0.391,4583.2,4583.1,0.7888]
[1758149305044,0.536,4583.2,4583.1,0.7888]
[1758149305241,0.536,4583.2,4583.1,0.5688]
[1758149305544,0.73342229,4583.2,4583.0,0.1295]
[1758149305749,0.57802229,4583.1,4583.0,0.465]
[1758149306046,0.48742229,4583.1,4583.0,0.6983]
[1758149306243,0.80202229,4583.1,4583.0,0.465]
[1758149306549,0.71142229,4583.1,4582.6,0.3355]
[1758149306746,0.29,4582.7,4582.6,0.5688]
[1758149306948,0.514,4582.7,4582.6,0.7888]
[1758149307347,1.01381123,4582.7,4582.6,0.7888]
[1758149308549,0.022,4583.2,4582.6,0.7888]
[1758149308746,0.167,4583.2,4583.1,0.7888]
[1758149309047,0.89016108,4583.2,4583.1,0.7888]
[1758149311046,1.03516108,4583.2,4583.1,0.7888]
[1758149311553,0.89016108,4583.2,4583.1,0.7888]
[1758149311943,0.52116108,4583.2,4583.1,0.7888]
[1758149312244,4.002,4583.8,4583.5,0.1295]
[1758149312439,0.7942,4583.4,4583.3,0.3355]
[1758149312643,3.2078,4583.8,4583.3,0.7888]
[1758149312846,0.5723,4583.6,4583.1,0.3355]
[1758149313048,0.64641971,4583.5,4583.4,0.7888]
[1758149313248,0.99141971,4583.5,4583.4,0.7888]
[1758149313452,0.7942,4583.5,4583.4,0.7888]
[1758149314252,0.7942,4583.5,4583.4,0.5688]
[1758149315041,0.4513,4583.8,4583.7,0.7888]
[1758149315353,0.4513,4583.8,4583.0,0.1295]
[1758149315354,4.64145376,4583.8,4583.1,0.3355]
[1758149315555,1.19777376,4583.7,4583.2,0.3366]
[1758149315757,0.6725,4583.7,4583.0,0.1295]
[1758149315951,0.2303,4583.2,4583.1,0.7898]
[1758149316252,0.4543,4583.2,4583.1,0.8116]
[1758149317052,0.2303,4583.2,4583.1,0.8116]
[1758149317252,0.4543,4583.2,4583.1,0.8116]
[1758149317957,0.224,4583.2,4583.1,0.8116]
[1758149318155,3.2078,4583.8,4583.1,0.475]
[1758149318358,0.42757211,4583.7,4583.6,0.7898]
[1758149318559,0.65157211,4583.7,4583.6,0.7898]
[1758149319160,0.42757211,4583.7,4583.6,0.7898]
[1758149319361,0.65157211,4583.7,4583.6,0.7898]
[1758149319556,3.2078,4583.8,4583.6,0.7898]
[1758149319763,3.4381,4584.4,4584.3,0.7898]
[1758149319953,3.2078,4584.4,4584.3,0.7898]
[1758149320155,3.6621,4584.4,4584.3,0.7898]
[1758149320857,4.2113,4584.4,4584.3,0.7898]
[1758149321363,4.2113,4584.4,4584.3,0.5572]
[1758149322054,3.8833,4584.4,4584.1,0.3366]
[1758149322252,0.7795,4584.2,4584.1,0.5572]
[1758149322454,0.2303,4584.2,4584.1,0.7898]
[1758149322658,3.2078,4584.4,4584.2,0.3366]
[1758149322854,3.2078,4584.4,4584.3,0.7898]
[1758149323059,3.4381,4584.4,4584.3,0.7898]
[1758149323362,3.4318,4584.4,4584.3,0.7898]
[1758149323958,3.2078,4584.9,4584.3,0.7898]
[1758149324163,0.035,4585.0,4584.9,0.7898]
[1758149324164,0.2653,4585.0,4584.9,0.7898]
[1758149324358,0.75525578,4585.0,4584.9,0.7898]
[1758149324561,0.035,4585.0,4584.9,0.7898]
[1758149324763,0.259,4585.0,4584.9,0.7898]
[1758149325261,1.53453026,4585.0,4584.9,0.7898]
[1758149325464,1.32333026,4585.0,4584.2,3.5444]
[1758149325664,0.4515,4584.3,4584.2,3.9976]
[1758149325856,0.4543,4584.3,4584.2,0.7898]
[1758149326061,0.6755,4584.3,4584.2,0.7898]
[1758149326364,1.0035,4584.3,4584.2,0.7898]
[1758149326564,0.6755,4584.3,4584.2,0.7898]
[1758149328663,0.6755,4584.3,4584.2,0.5572]
[1758149328664,1.0035,4584.3,4584.2,0.5572]
[1758149328864,0.4515,4583.8,4583.1,3.2078]
[1758149329062,1.0035,4583.7,4583.6,0.5572]
[1758149329661,1.0035,4583.7,4583.6,0.7898]
[1758149329967,1.0035,4583.7,4583.2,0.3366]
[1758149330168,0.7795,4583.3,4583.2,0.5572]
[1758149330369,1.0035,4583.3,4583.2,0.5572]
[1758149330565,1.0035,4583.3,4583.2,0.7898]
[1758149331374,0.224,4583.3,4583.2,0.7898]
[1758149331668,3.2078,4584.3,4584.1,0.3366]
[1758149331873,0.035,4585.0,4584.3,0.3366]
[1758149332070,0.035,4585.0,4584.8,0.7898]
[1758149332071,0.91724187,4584.9,4584.8,0.7898]
[1758149332268,0.72010789,4584.9,4584.8,0.7898]
[1758149332470,0.49610789,4584.9,4584.8,0.7898]